Workbook

Sheet Доходы
E1: Приложение №1 к постановлению администрации
E2: Суховского сельского поселения от 19.10.2015г.№191
A3: Отчет на 01.10.2015г. по выполнению доходной части бюджета МО Суховское сельское поселение
A5: Наименование показателя | B5: Код строки | C5: Код дохода по бюджетной классификации | E5: План | F5: Факт
E6: Бюджет МО Сельское поселение | F6: Бюджет МО Сельское поселение | G6: % исполнения
A12: 1 | B12: 2 | C12: 3 | E12: 4 | F12: 5 | G12: 6
A13: Доходы - всего | B13: 010 | C13: x | E13: 24786333.54 | F13: 15707623.9 | G13: =F13/E13*100 -> 63.37211542
A14: в том числе:
A15: Налоговые и неналоговые доходы | B15: 010 | C15: 000 10000000000000 000 | E15: 9384711.54 | F15: 5799897.68 | G15: =F15/E15*100 -> 61.80155517
A16: Налоги на прибыль, доходы | B16: 010 | C16: 000 10100000000000 000 | E16: 415000 | F16: 294691.1 | G16: =F16/E16*100 -> 71.00990361
A17: Налог на доходы физических лиц | B17: 010 | C17: 000 10102000010000 110 | E17: 415000 | F17: 294691.1 | G17: 71.00990361
A18: Налог на доходы физических лиц с доходов, источником которых является налоговый агент, за исключением доходов, в отношении которых исчисление и уплата налога осуществляются в соответствии со статьями 227, 227 и 228 Налогового кодекса Российской Федерации | B18: 010 | C18: 000 10102010010000 110 | E18: 415000 | F18: 288511.83 | G18: 69.52092289
A19: Налог на доходы физических лиц с доходов, источником которых является налоговый агент, за исключением доходов, в отношении которых исчисление и уплата налога осуществляются в соответствии со статьями 227, 227 и 228 Налогового кодекса Российской Федерации (сумма платежа) | B19: 010 | C19: 000 10102010011000 110 | E19: - | F19: 288511.83 | G19: -
A20: Налог на доходы физических лиц с доходов, полученных от осуществления деятельности физическими лицами, зарегистрированными в качестве индивидуальных предпринимателей, нотариусов, занимающихся частной практикой, адвокатов, учредивших адвокатские кабинеты и других лиц, занимающихся частной практикой в соответствии со статьей 227 Налогового кодекса Российской Федерации (сумма платежа) | B20: 010 | C20: 000 10102020011000 110 | E20: - | F20: 1168.3 | G20: -
A21: Налог на доходы физических лиц с доходов, полученных физическими лицами в соответствии со статьей 228 Налогового кодекса Российской Федерации | B21: 010 | C21: 000 10102030010000 110 | E21: - | F21: 5010.97 | G21: -
A22: Налог на доходы физических лиц с доходов, полученных физическими лицами в соответствии со статьей 228 Налогового Кодекса Российской Федерации (сумма платежа) | B22: 010 | C22: 000 10102030011000 110 | E22: - | F22: 4800 | G22: -
A23: Налог на доходы физических лиц с доходов, полученных физическими лицами в соответствии со статьей 228 Налогового кодекса Российской Федерации (пени по соответствующему платежу) | B23: 010 | C23: 000 10102030012100 110 | E23: - | F23: 10.97 | G23: -
A24: Налог на доходы физических лиц с доходов, полученных физическими лицами в соответствии со статьей 228 Налогового Кодекса Российской Федерации (суммы денежных взысканий (штрафов)) | B24: 010 | C24: 000 10102030013000 110 | E24: - | F24: 200 | G24: -
A25: Налоги на товары (работы, услуги), реализуемые на территории Российской Федерации | B25: 010 | C25: 000 10300000000000 000 | E25: 1415200 | F25: 1190580.05 | G25: =F25/E25*100 -> 84.12804197
A26: Акцизы по подакцизным товарам (продукции), производимым на территории Российской Федерации | B26: 010 | C26: 000 10302000010000 110 | E26: 1415200 | F26: 1190580.05 | G26: 84.12804197
A27: Доходы от уплаты акцизов на дизельное топливо, подлежащие распределению между бюджетами субъектов Российской Федерации и местными бюджетами с учетом установленных дифференцированных нормативов отчислений в местные бюджеты | B27: 010 | C27: 000 10302230010000 110 | E27: 543300 | F27: 408604.5 | G27: 75.20789619
A28: Доходы от уплаты акцизов на моторные масла для дизельных и (или) карбюраторных (инжекторных) двигателей, подлежащие распределению между бюджетами субъектов Российской Федерации и местными бюджетами с учетом установленных дифференцированных нормативов отчислений в местные бюджеты | B28: 010 | C28: 000 10302240010000 110 | E28: 12000 | F28: 11096.31 | G28: 92.46925
A29: Доходы от уплаты акцизов на автомобильный бензин, подлежащие распределению между бюджетами субъектов Российской Федерации и местными бюджетами с учетом установленных дифференцированных нормативов отчислений в местные бюджеты | B29: 010 | C29: 000 10302250010000 110 | E29: 859900 | F29: 819780.87 | G29: 95.33444238
A30: Доходы от уплаты акцизов на прямогонный бензин, подлежащие распределению между бюджетами субъектов Российской Федерации и местными бюджетами с учетом установленных дифференцированных нормативов отчислений в местные бюджеты | B30: 010 | C30: 000 10302260010000 110 | E30: - | F30: -48901.63 | G30: -
A31: Налоги на имущество | B31: 010 | C31: 000 10600000000000 000 | E31: 7066200 | F31: 3932992.11 | G31: =F31/E31*100 -> 55.65922434
A32: Налог на имущество физических лиц | B32: 010 | C32: 000 10601000000000 110 | E32: 570000 | F32: 434473.7 | G32: 76.22345614
A33: Налог на имущество физических лиц, взимаемый по ставкам, применяемым к объектам налогообложения, расположенным в границах сельских поселений | B33: 010 | C33: 000 10601030100000 110 | E33: 570000 | F33: 434473.7 | G33: 76.22345614
A34: Налог на имущество физических лиц, взимаемый по ставкам, применяемым к объектам налогообложения, расположенным в границах поселений (сумма платежа) | B34: 010 | C34: 000 10601030101000 110 | E34: - | F34: 423572.33 | G34: -
A35: Налог на имущество физических лиц, взимаемый по ставкам, применяемым к объектам налогообложения, расположенным в границах сельских поселений (пени по соответствующему платежу) | B35: 010 | C35: 000 10601030102100 110 | E35: - | F35: 10901.37 | G35: -
A36: Транспортный налог | B36: 010 | C36: 000 10604000020000 110 | E36: 486700 | F36: 397613.18 | G36: =F36/E36*100 -> 81.69574276
A37: Транспортный налог с организаций | B37: 010 | C37: 000 10604011020000 110 | E37: 18700 | F37: 25886.41 | G37: 138.43
A38: Транспортный налог с организаций (сумма платежа) | B38: 010 | C38: 000 10604011021000 110 | E38: - | F38: 25845.5 | G38: -
A39: Транспортный налог с организаций (пени по соответствующему платежу) | B39: 010 | C39: 000 10604011022100 110 | E39: - | F39: 40.91 | G39: -
A40: Транспортный налог с физических лиц | B40: 010 | C40: 000 10604012020000 110 | E40: 468000 | F40: 371726.77 | G40: =F40/E40*100 -> 79.42879701
A41: Транспортный налог с физических лиц (сумма платежа) | B41: 010 | C41: 000 10604012021000 110 | E41: - | F41: 363366.72 | G41: -
A42: Транспортный налог с физических лиц (пени по соответствующему платежу) | B42: 010 | C42: 000 10604012022100 110 | E42: - | F42: 8360.05 | G42: -
A43: Земельный налог | B43: 010 | C43: 000 10606000000000 110 | E43: 6009500 | F43: 3100905.23 | G43: =F43/E43*100 -> 51.60005375
A44: Земельный налог с организаций | B44: 010 | C44: 000 10606030030000 110 | E44: 3185000 | F44: 1491034.46 | G44: 46.81426876
A45: Земельный налог с организаций, обладающих земельным участком, расположенным в границах сельских поселений | B45: 010 | C45: 000 10606033100000 110 | E45: 3185000 | F45: 1491034.46 | G45: 46.81426876
A46: Земельный налог с физических лиц | B46: 010 | C46: 000 10606040000000 110 | E46: 2824500 | F46: 1609870.77 | G46: 56.99666383
A47: Земельный налог с физических лиц, обладающих земельным участком, расположенным в границах сельских поселений | B47: 010 | C47: 000 10606043100000 110 | E47: 2824500 | F47: 1609870.77 | G47: 56.99666383
A48: Государственная пошлина | B48: 010 | C48: 000 10800000000000 000 | E48: 16000 | F48: 7300 | G48: 45.625
A49: Государственная пошлина за совершение нотариальных действий (за исключением действий, совершаемых консульскими учреждениями Российской Федерации) | B49: 010 | C49: 000 10804000010000 110 | E49: 16000 | F49: 7300 | G49: 45.625
A50: Государственная пошлина за совершение нотариальных действий должностными лицами органов местного самоуправления, уполномоченными в соответствии с законодательными актами Российской Федерации на совершение нотариальных действий | B50: 010 | C50: 000 10804020010000 110 | E50: 16000 | F50: 7300 | G50: 45.625
A51: Государственная пошлина за совершение нотариальных действий должностными лицами органов местного самоуправления, уполномоченными в соответствии с законодательными актами Российской Федерации на совершение нотариальных действий (сумма платежа) | B51: 010 | C51: 000 10804020011000 110 | E51: - | F51: 7300 | G51: -
A52: Доходы от использования имущества, находящегося в государственной и муниципальной собственности | B52: 010 | C52: 000 11100000000000 000 | E52: 291200 | F52: 197162.88 | G52: =F52/E52*100 -> 67.70703297
A53: Доходы, получаемые в виде арендной либо иной платы за передачу в возмездное пользование государственного и муниципального имущества (за исключением имущества бюджетных и автономных учреждений, а также имущества государственных и муниципальных унитарных предприятий, в том числе казенных) | B53: 010 | C53: 000 11105000000000 120 | E53: 11200 | F53: - | G53: -
A54: Доходы от сдачи в аренду имущества, находящегося в оперативном управлении органов государственной власти, органов местного самоуправления, государственных внебюджетных фондов и созданных ими учреждений (за исключением имущества бюджетных и автономных учреждений) | B54: 010 | C54: 000 11105030000000 120 | E54: 11200 | F54: - | G54: -
A55: Доходы от сдачи в аренду имущества, находящегося в оперативном управлении органов управления сельских поселений и созданных ими учреждений (за исключением имущества муниципальных бюджетных и автономных учреждений) | B55: 010 | C55: 000 11105035100000 120 | E55: 11200 | F55: - | G55: -
A56: Прочие доходы от использования имущества и прав, находящихся в государственной и муниципальной собственности (за исключением имущества бюджетных и автономных учреждений, а также имущества государственных и муниципальных унитарных предприятий, в том числе казенных) | B56: 010 | C56: 000 11109000000000 120 | E56: 280000 | F56: 197162.88 | G56: =F56/E56*100 -> 70.41531429
A57: Прочие поступления от использования имущества, находящегося в государственной и муниципальной собственности (за исключением имущества бюджетных и автономных учреждений, а также имущества государственных и муниципальных унитарных предприятий, в том числе казенных) | B57: 010 | C57: 000 11109040000000 120 | E57: 280000 | F57: 197162.88 | G57: 70.41531429
A58: Прочие поступления от использования имущества, находящегося в собственности сельских поселений (за исключением имущества муниципальных бюджетных и автономных учреждений, а также имущества муниципальных унитарных предприятий, в том числе казенных) | B58: 010 | C58: 000 11109045100000 120 | E58: 280000 | F58: 197162.88 | G58: 70.41531429
A59: Доходы от оказания платных услуг (работ) и компенсации затрат государства | B59: 010 | C59: 000 11300000000000 000 | E59: 181111.54 | F59: 177171.54 | G59: 97.82454503
A60: Доходы от оказания платных услуг (работ) | B60: 010 | C60: 000 11301000000000 130 | E60: 16000 | F60: 12060 | G60: 75.375
A61: Прочие доходы от оказания платных услуг (работ) | B61: 010 | C61: 000 11301990000000 130 | E61: 16000 | F61: 12060 | G61: 75.375
A62: Прочие доходы от оказания платных услуг (работ) получателями средств бюджетов сельских поселений | B62: 010 | C62: 000 11301995100000 130 | E62: 16000 | F62: 12060 | G62: 75.375
A63: Доходы от компенсации затрат государства | B63: 010 | C63: 000 11302000000000 130 | E63: 165111.54 | F63: 165111.54 | G63: 100
A64: Прочие доходы от компенсации затрат государства | B64: 010 | C64: 000 11302990000000 130 | E64: 165111.54 | F64: 165111.54 | G64: 100
A65: Прочие доходы от компенсации затрат бюджетов сельских поселений | B65: 010 | C65: 000 11302995100000 130 | E65: 165111.54 | F65: 165111.54 | G65: 100
A66: Безвозмездные поступления | B66: 010 | C66: 000 20000000000000 000 | E66: 15401622 | F66: 9907726.22 | G66: 64.3291091
A67: Безвозмездные поступления от других бюджетов бюджетной системы Российской Федерации | B67: 010 | C67: 000 20200000000000 000 | E67: 15349622 | F67: 9855726.22 | G67: 64.20826663
A68: Дотации бюджетам субъектов Российской Федерации и муниципальных образований | B68: 010 | C68: 000 20201000000000 151 | E68: 2326400 | F68: 1744800 | G68: 75
A69: Дотации на выравнивание бюджетной обеспеченности | B69: 010 | C69: 000 20201001000000 151 | E69: 2326400 | F69: 1744800 | G69: 75
A70: Дотации бюджетам сельских поселений на выравнивание бюджетной обеспеченности | B70: 010 | C70: 000 20201001100000 151 | E70: 2326400 | F70: 1744800 | G70: 75
A71: Субсидии бюджетам бюджетной системы Российской Федерации (межбюджетные субсидии) | B71: 010 | C71: 000 20202000000000 151 | E71: 5729670 | F71: 3659995 | G71: 63.87793712
A72: Субсидии бюджетам на бюджетные инвестиции в объекты капитального строительства государственной собственности (объекты капитального строительства собственности муниципальных образований) | B72: 010 | C72: 000 20202077000000 151 | E72: 783000 | F72: - | G72: -
A73: Субсидии бюджетам поселений на бюджетные инвестиции в объекты капитального строительства собственности муниципальных образований | B73: 010 | C73: 000 20202077100000 151 | E73: 783000 | F73: - | G73: -
A74: Субсидии бюджетам на осуществление дорожной деятельности в отношении автомобильных дорог общего пользования, а также капитального ремонта и ремонта дворовых территорий многоквартирных домов, проездов к дворовым территориям многоквартирных домов населенных пунктов | B74: 010 | C74: 000 20202216000000 151 | E74: 1795400 | F74: 1795400 | G74: =F74/E74*100 -> 100
A75: Субсидии бюджетам поселений на осуществление дорожной деятельности в отношении автомобильных дорог общего пользования, а также капитального ремонта и ремонта дворовых территорий многоквартирных домов, проездов к дворовым территориям многоквартирных домов населенных пунктов | B75: 010 | C75: 000 20202216100000 151 | E75: 1795400 | F75: 1795400 | G75: 100
A76: Прочие субсидии | B76: 010 | C76: 000 20202999000000 151 | E76: 3151270 | F76: 1864595 | G76: 59.16963637
A77: Прочие субсидии бюджетам сельских поселений | B77: 010 | C77: 000 20202999100000 151 | E77: 3151270 | F77: 1864595 | G77: 59.16963637
A78: Субвенции бюджетам субъектов Российской Федерации и муниципальных образований | B78: 010 | C78: 000 20203000000000 151 | E78: 92230 | F78: 92230 | G78: 100
A79: Субвенции бюджетам на осуществление первичного воинского учета на территориях, где отсутствуют военные комиссариаты | B79: 010 | C79: 000 20203015000000 151 | E79: 91230 | F79: 91230 | G79: 100
A80: Субвенции бюджетам сельских поселений на осуществление первичного воинского учета на территориях, где отсутствуют военные комиссариаты | B80: 010 | C80: 000 20203015100000 151 | E80: 91230 | F80: 91230 | G80: 100
A81: Субвенции местным бюджетам на выполнение передаваемых полномочий субъектов Российской Федерации | B81: 010 | C81: 000 20203024000000 151 | E81: 1000 | F81: 1000 | G81: 100
A82: Субвенции бюджетам сельских поселений на выполнение передаваемых полномочий субъектов Российской Федерации | B82: 010 | C82: 000 20203024100000 151 | E82: 1000 | F82: 1000 | G82: 100
A83: Иные межбюджетные трансферты | B83: 010 | C83: 000 20204000000000 151 | E83: 7201322 | F83: 4358701.22 | G83: 60.52640362
A84: Межбюджетные трансферты, передаваемые бюджетам муниципальных образований на осуществление части полномочий по решению вопросов местного значения в соответствии с заключенными соглашениями | B84: 010 | C84: 000 20204014000000 151 | E84: 185315 | F84: 138986.25 | G84: 75
A85: Межбюджетные трансферты, передаваемые бюджетам сельских поселений из бюджетов муниципальных районов на осуществление части полномочий по решению вопросов местного значения в соответствии с заключенными соглашениями | B85: 010 | C85: 000 20204014100000 151 | E85: 185315 | F85: 138986.25 | G85: 75
A86: Прочие межбюджетные трансферты, передаваемые бюджетам | B86: 010 | C86: 000 20204999000000 151 | E86: 7016007 | F86: 4219714.97 | G86: 60.14411003
A87: Прочие межбюджетные трансферты, передаваемые бюджетам сельских поселений | B87: 010 | C87: 000 20204999100000 151 | E87: 7016007 | F87: 4219714.97 | G87: 60.14411003
A88: Прочие безвозмездные поступления | B88: 010 | C88: 000 20700000000000 000 | E88: 52000 | F88: 52000 | G88: 100
A89: ПРОЧИЕ БЕЗВОЗМЕЗДНЫЕ ПОСТУПЛЕНИЯ | B89: 010 | C89: 000 20700000000000 180 | E89: 52000 | F89: 52000 | G89: 100
A90: Прочие безвозмездные поступления в бюджеты городских поселений | B90: 010 | C90: 000 20705000130000 180 | E90: 52000 | F90: 52000 | G90: 100
A91: Прочие безвозмездные поступления в бюджеты сельских поселений | B91: 010 | C91: 000 20705030100000 180 | E91: 52000 | F91: 52000 | G91: 100

Sheet Расходы
E1: Приложение №2 к постановлению администрации
E2: Суховского сельского поселения от 19.10.2015г.№191
A3: Отчет на 01.10.2015г.по выполнению расходной части бюджета МО Суховское сельское полселение
A5: Наименование показателя | B5: Код строки | C5: Код расхода по бюджетной классификации | E5: План | F5: Факт
E6: Бюджет МО Сельское поселение | F6: Бюджет МО Сельское поселение | G6: % исполнения
A13: 1 | B13: 2 | C13: 3 | E13: 4 | F13: 5 | G13: 6
A14: Расходы бюджета - ИТОГО | B14: 200 | C14: x | E14: 26011517.82 | F14: 15030656.76 | G14: =F14/E14*100 -> 57.78462012
A15: в том числе:
A16: ОБЩЕГОСУДАРСТВЕННЫЕ ВОПРОСЫ | B16: 200 | C16: 000 0100 0000000 000 000 | E16: 6147895.23 | F16: 3415763.81 | G16: =F16/E16*100 -> 55.55988972
A17: Расходы на выплаты персоналу в целях обеспечения выполнения функций государственными (муниципальными) органами, казенными учреждениями, органами управления государственными внебюджетными фондами | B17: 200 | C17: 000 0100 0000000 100 000 | E17: 4116005.18 | F17: 2465375.95 | G17: =F17/E17*100 -> 59.8972995
A18: Расходы на выплаты персоналу государственных (муниципальных) органов | B18: 200 | C18: 000 0100 0000000 120 000 | E18: 4116005.18 | F18: 2465375.95 | G18: =F18/E18*100 -> 59.8972995
A19: Фонд оплаты труда государственных (муниципальных) органов и взносы по обязательному социальному страхованию | B19: 200 | C19: 000 0100 0000000 121 000 | E19: 4100220.58 | F19: 2460938.95 | G19: 60.01967216
A20: Расходы | B20: 200 | C20: 000 0100 0000000 121 200 | E20: 4100220.58 | F20: 2460938.95 | G20: 60.01967216
A21: Оплата труда и начисления на выплаты по оплате труда | B21: 200 | C21: 000 0100 0000000 121 210 | E21: 4100220.58 | F21: 2460938.95 | G21: 60.01967216
A22: Заработная плата | B22: 200 | C22: 000 0100 0000000 121 211 | E22: 3149170.95 | F22: 1901341.55 | G22: 60.37593958
A23: Начисления на выплаты по оплате труда | B23: 200 | C23: 000 0100 0000000 121 213 | E23: 951049.63 | F23: 559597.4 | G23: 58.83997873
A24: Иные выплаты персоналу государственных (муниципальных) органов, за исключением фонда оплаты труда | B24: 200 | C24: 000 0100 0000000 122 000 | E24: 15784.6 | F24: 4437 | G24: 28.10967652
A25: Расходы | B25: 200 | C25: 000 0100 0000000 122 200 | E25: 15784.6 | F25: 4437 | G25: 28.10967652
A26: Оплата работ, услуг | B26: 200 | C26: 000 0100 0000000 122 220 | E26: 15784.6 | F26: 4437 | G26: 28.10967652
A27: Транспортные услуги | B27: 200 | C27: 000 0100 0000000 122 222 | E27: 15784.6 | F27: 4437 | G27: 28.10967652
A28: Закупка товаров, работ и услуг для государственных (муниципальных) нужд | B28: 200 | C28: 000 0100 0000000 200 000 | E28: 1775681.97 | F28: 788972.63 | G28: 44.43209107
A29: Иные закупки товаров, работ и услуг для обеспечения государственных (муниципальных) нужд | B29: 200 | C29: 000 0100 0000000 240 000 | E29: 1775681.97 | F29: 788972.63 | G29: 44.43209107
A30: Закупка товаров, работ, услуг в сфере информационно-коммуникационных технологий | B30: 200 | C30: 000 0100 0000000 242 000 | E30: 389440.56 | F30: 133650.71 | G30: 34.31864159
A31: Расходы | B31: 200 | C31: 000 0100 0000000 242 200 | E31: 301415.63 | F31: 117100.71 | G31: 38.85024476
A32: Оплата работ, услуг | B32: 200 | C32: 000 0100 0000000 242 220 | E32: 301415.63 | F32: 117100.71 | G32: 38.85024476
A33: Услуги связи | B33: 200 | C33: 000 0100 0000000 242 221 | E33: 82943.28 | F33: 43600.71 | G33: 52.56689873
A34: Работы, услуги по содержанию имущества | B34: 200 | C34: 000 0100 0000000 242 225 | E34: 55450.3 | F34: 32000 | G34: 57.70933611
A35: Прочие работы, услуги | B35: 200 | C35: 000 0100 0000000 242 226 | E35: 163022.05 | F35: 41500 | G35: 25.45667902
A36: Поступление нефинансовых активов | B36: 200 | C36: 000 0100 0000000 242 300 | E36: 88024.93 | F36: 16550 | G36: 18.8014918
A37: Увеличение стоимости основных средств | B37: 200 | C37: 000 0100 0000000 242 310 | E37: 10462.92 | F37: - | G37: -
A38: Увеличение стоимости материальных запасов | B38: 200 | C38: 000 0100 0000000 242 340 | E38: 77562.01 | F38: 16550 | G38: =F38/E38*100 -> 21.33776574
A39: Прочая закупка товаров, работ и услуг для обеспечения государственных (муниципальных) нужд | B39: 200 | C39: 000 0100 0000000 244 000 | E39: 1386241.41 | F39: 655321.92 | G39: 47.27328987
A40: Расходы | B40: 200 | C40: 000 0100 0000000 244 200 | E40: 1132613.78 | F40: 579539.57 | G40: 51.16833119
A41: Оплата работ, услуг | B41: 200 | C41: 000 0100 0000000 244 220 | E41: 1084890.78 | F41: 546816.57 | G41: 50.40291429
A42: Услуги связи | B42: 200 | C42: 000 0100 0000000 244 221 | E42: 6024.2 | F42: 4200 | G42: 69.71880084
A43: Коммунальные услуги | B43: 200 | C43: 000 0100 0000000 244 223 | E43: 506315.76 | F43: 381914.6 | G43: 75.43012289
A44: Работы, услуги по содержанию имущества | B44: 200 | C44: 000 0100 0000000 244 225 | E44: 150889.6 | F44: 45918.7 | G44: 30.43198471
A45: Прочие работы, услуги | B45: 200 | C45: 000 0100 0000000 244 226 | E45: 421661.22 | F45: 114783.27 | G45: 27.22168048
A46: Прочие расходы | B46: 200 | C46: 000 0100 0000000 244 290 | E46: 47723 | F46: 32723 | G46: 68.56861471
A47: Поступление нефинансовых активов | B47: 200 | C47: 000 0100 0000000 244 300 | E47: 253627.63 | F47: 75782.35 | G47: 29.87937474
A48: Увеличение стоимости материальных запасов | B48: 200 | C48: 000 0100 0000000 244 340 | E48: 253627.63 | F48: 75782.35 | G48: 29.87937474
A49: Межбюджетные трансферты | B49: 200 | C49: 000 0100 0000000 500 000 | E49: 211842 | F49: 158881.5 | G49: 75
A50: Иные межбюджетные трансферты | B50: 200 | C50: 000 0100 0000000 540 000 | E50: 211842 | F50: 158881.5 | G50: 75
A51: Расходы | B51: 200 | C51: 000 0100 0000000 540 200 | E51: 211842 | F51: 158881.5 | G51: 75
A52: Безвозмездные перечисления бюджетам | B52: 200 | C52: 000 0100 0000000 540 250 | E52: 211842 | F52: 158881.5 | G52: 75
A53: Перечисления другим бюджетам бюджетной системы Российской Федерации | B53: 200 | C53: 000 0100 0000000 540 251 | E53: 211842 | F53: 158881.5 | G53: 75
A54: Иные бюджетные ассигнования | B54: 200 | C54: 000 0100 0000000 800 000 | E54: 44366.08 | F54: 2533.73 | G54: 5.710962068
A55: Уплата налогов, сборов и иных платежей | B55: 200 | C55: 000 0100 0000000 850 000 | E55: 14366.08 | F55: 2533.73 | G55: 17.6368919
A56: Уплата прочих налогов, сборов | B56: 200 | C56: 000 0100 0000000 852 000 | E56: 12091.48 | F56: 259.13 | G56: 2.143079259
A57: Расходы | B57: 200 | C57: 000 0100 0000000 852 200 | E57: 12091.48 | F57: 259.13 | G57: 2.143079259
A58: Прочие расходы | B58: 200 | C58: 000 0100 0000000 852 290 | E58: 12091.48 | F58: 259.13 | G58: 2.143079259
A59: Уплата иных платежей | B59: 200 | C59: 000 0100 0000000 853 000 | E59: 2274.6 | F59: 2274.6 | G59: 100
A60: Расходы | B60: 200 | C60: 000 0100 0000000 853 200 | E60: 2274.6 | F60: 2274.6 | G60: 100
A61: Прочие расходы | B61: 200 | C61: 000 0100 0000000 853 290 | E61: 2274.6 | F61: 2274.6 | G61: 100
A62: Резервные средства | B62: 200 | C62: 000 0100 0000000 870 000 | E62: 30000 | F62: - | G62: -
A63: Расходы | B63: 200 | C63: 000 0100 0000000 870 200 | E63: 30000 | F63: - | G63: -
A64: Прочие расходы | B64: 200 | C64: 000 0100 0000000 870 290 | E64: 30000 | F64: - | G64: -
A65: Функционирование высшего должностного лица субъекта Российской Федерации и муниципального образования | B65: 200 | C65: 000 0102 0000000 000 000 | E65: 989475.73 | F65: 592451.35 | G65: =F65/E65*100 -> 59.8752786
A66: Расходы на выплаты персоналу в целях обеспечения выполнения функций государственными (муниципальными) органами, казенными учреждениями, органами управления государственными внебюджетными фондами | B66: 200 | C66: 000 0102 0000000 100 000 | E66: 989475.73 | F66: 592451.35 | G66: =F66/E66*100 -> 59.8752786
A67: Расходы на выплаты персоналу государственных (муниципальных) органов | B67: 200 | C67: 000 0102 0000000 120 000 | E67: 989475.73 | F67: 592451.35 | G67: 59.8752786
A68: Фонд оплаты труда государственных (муниципальных) органов и взносы по обязательному социальному страхованию | B68: 200 | C68: 000 0102 0000000 121 000 | E68: 989475.73 | F68: 592451.35 | G68: 59.8752786
A69: Расходы | B69: 200 | C69: 000 0102 0000000 121 200 | E69: 989475.73 | F69: 592451.35 | G69: 59.8752786
A70: Функционирование законодательных (представительных) органов государственной власти и представительных органов муниципальных образований | B70: 200 | C70: 000 0103 0000000 000 000 | E70: 96939.27 | F70: 64303.21 | G70: =F70/E70*100 -> 66.33349931
A71: Расходы на выплаты персоналу в целях обеспечения выполнения функций государственными (муниципальными) органами, казенными учреждениями, органами управления государственными внебюджетными фондами | B71: 200 | C71: 000 0103 0000000 100 000 | E71: 1805.2 | F71: - | G71: -
A72: Расходы на выплаты персоналу государственных (муниципальных) органов | B72: 200 | C72: 000 0103 0000000 120 000 | E72: 1805.2 | F72: - | G72: -
A73: Иные выплаты персоналу государственных (муниципальных) органов, за исключением фонда оплаты труда | B73: 200 | C73: 000 0103 0000000 122 000 | E73: 1805.2 | F73: - | G73: -
A74: Расходы | B74: 200 | C74: 000 0103 0000000 122 200 | E74: 1805.2 | F74: - | G74: -
A75: Закупка товаров, работ и услуг для государственных (муниципальных) нужд | B75: 200 | C75: 000 0103 0000000 200 000 | E75: 68333.07 | F75: 44389.96 | G75: =F75/E75*100 -> 64.96116741
A76: Иные закупки товаров, работ и услуг для обеспечения государственных (муниципальных) нужд | B76: 200 | C76: 000 0103 0000000 240 000 | E76: 68333.07 | F76: 44389.96 | G76: 64.96116741
A77: Закупка товаров, работ, услуг в сфере информационно-коммуникационных технологий | B77: 200 | C77: 000 0103 0000000 242 000 | E77: 6978.81 | F77: 3950 | G77: 56.59990743
A78: Расходы | B78: 200 | C78: 000 0103 0000000 242 200 | E78: 3950 | F78: 3950 | G78: 100
A79: Поступление нефинансовых активов | B79: 200 | C79: 000 0103 0000000 242 300 | E79: 3028.81 | F79: - | G79: -
A80: Прочая закупка товаров, работ и услуг для обеспечения государственных (муниципальных) нужд | B80: 200 | C80: 000 0103 0000000 244 000 | E80: 61354.26 | F80: 40439.96 | G80: =F80/E80*100 -> 65.91222843
A81: Расходы | B81: 200 | C81: 000 0103 0000000 244 200 | E81: 59354.26 | F81: 40439.96 | G81: 68.1332056
A82: Поступление нефинансовых активов | B82: 200 | C82: 000 0103 0000000 244 300 | E82: 2000 | F82: -
A83: Межбюджетные трансферты | B83: 200 | C83: 000 0103 0000000 500 000 | E83: 26551 | F83: 19913.25 | G83: 75
A84: Иные межбюджетные трансферты | B84: 200 | C84: 000 0103 0000000 540 000 | E84: 26551 | F84: 19913.25 | G84: 75
A85: Расходы | B85: 200 | C85: 000 0103 0000000 540 200 | E85: 26551 | F85: 19913.25 | G85: 75
A86: Иные бюджетные ассигнования | B86: 200 | C86: 000 0103 0000000 800 000 | E86: 250 | F86: - | G86: -
A87: Уплата налогов, сборов и иных платежей | B87: 200 | C87: 000 0103 0000000 850 000 | E87: 250 | F87: - | G87: -
A88: Уплата прочих налогов, сборов | B88: 200 | C88: 000 0103 0000000 852 000 | E88: 250 | F88: - | G88: -
A89: Расходы | B89: 200 | C89: 000 0103 0000000 852 200 | E89: 250 | F89: - | G89: -
A90: Функционирование Правительства Российской Федерации, высших исполнительных органов государственной власти субъектов Российской Федерации, местных администраций | B90: 200 | C90: 000 0104 0000000 000 000 | E90: 4458677.97 | F90: 2397614.43 | G90: =F90/E90*100 -> 53.77411076
A91: Расходы на выплаты персоналу в целях обеспечения выполнения функций государственными (муниципальными) органами, казенными учреждениями, органами управления государственными внебюджетными фондами | B91: 200 | C91: 000 0104 0000000 100 000 | E91: 3124724.25 | F91: 1872924.6 | G91: =F91/E91*100 -> 59.93887621
A92: Расходы на выплаты персоналу государственных (муниципальных) органов | B92: 200 | C92: 000 0104 0000000 120 000 | E92: 3124724.25 | F92: 1872924.6 | G92: 59.93887621
A93: Фонд оплаты труда государственных (муниципальных) органов и взносы по обязательному социальному страхованию | B93: 200 | C93: 000 0104 0000000 121 000 | E93: 3110744.85 | F93: 1868487.6 | G93: 60.06560133
A94: Расходы | B94: 200 | C94: 000 0104 0000000 121 200 | E94: 3110744.85 | F94: 1868487.6 | G94: 60.06560133
A95: Иные выплаты персоналу государственных (муниципальных) органов, за исключением фонда оплаты труда | B95: 200 | C95: 000 0104 0000000 122 000 | E95: 13979.4 | F95: 4437 | G95: 31.73955964
A96: Расходы | B96: 200 | C96: 000 0104 0000000 122 200 | E96: 13979.4 | F96: 4437 | G96: 31.73955964
A97: Закупка товаров, работ и услуг для государственных (муниципальных) нужд | B97: 200 | C97: 000 0104 0000000 200 000 | E97: 1194708.71 | F97: 422001.1 | G97: 35.3225097
A98: Иные закупки товаров, работ и услуг для обеспечения государственных (муниципальных) нужд | B98: 200 | C98: 000 0104 0000000 240 000 | E98: 1194708.71 | F98: 422001.1 | G98: 35.3225097
A99: Закупка товаров, работ, услуг в сфере информационно-коммуникационных технологий | B99: 200 | C99: 000 0104 0000000 242 000 | E99: 382461.75 | F99: 129700.71 | G99: 33.91207356
A100: Расходы | B100: 200 | C100: 000 0104 0000000 242 200 | E100: 297465.63 | F100: 113150.71 | G100: 38.03824664
A101: Поступление нефинансовых активов | B101: 200 | C101: 000 0104 0000000 242 300 | E101: 84996.12 | F101: 16550 | G101: 19.47147705
A102: Прочая закупка товаров, работ и услуг для обеспечения государственных (муниципальных) нужд | B102: 200 | C102: 000 0104 0000000 244 000 | E102: 812246.96 | F102: 292300.39 | G102: 35.98664007
A103: Расходы | B103: 200 | C103: 000 0104 0000000 244 200 | E103: 560619.33 | F103: 216518.04 | G103: 38.62122271
A104: Поступление нефинансовых активов | B104: 200 | C104: 000 0104 0000000 244 300 | E104: 251627.63 | F104: 75782.35 | G104: 30.11686356
A105: Межбюджетные трансферты | B105: 200 | C105: 000 0104 0000000 500 000 | E105: 133540 | F105: 100155 | G105: 75
A106: Иные межбюджетные трансферты | B106: 200 | C106: 000 0104 0000000 540 000 | E106: 133540 | F106: 100155 | G106: 75
A107: Расходы | B107: 200 | C107: 000 0104 0000000 540 200 | E107: 133540 | F107: 100155 | G107: 75
A108: Иные бюджетные ассигнования | B108: 200 | C108: 000 0104 0000000 800 000 | E108: 5705.01 | F108: 2533.73 | G108: 44.41236738
A109: Уплата налогов, сборов и иных платежей | B109: 200 | C109: 000 0104 0000000 850 000 | E109: 5705.01 | F109: 2533.73 | G109: 44.41236738
A110: Уплата прочих налогов, сборов | B110: 200 | C110: 000 0104 0000000 852 000 | E110: 3430.41 | F110: 259.13 | G110: 7.55390755
A111: Расходы | B111: 200 | C111: 000 0104 0000000 852 200 | E111: 3430.41 | F111: 259.13 | G111: 7.55390755
A112: Уплата иных платежей | B112: 200 | C112: 000 0104 0000000 853 000 | E112: 2274.6 | F112: 2274.6 | G112: 100
A113: Расходы | B113: 200 | C113: 000 0104 0000000 853 200 | E113: 2274.6 | F113: 2274.6 | G113: 100
A114: Обеспечение деятельности финансовых, налоговых и таможенных органов и органов финансового (финансово-бюджетного) надзора | B114: 200 | C114: 000 0106 0000000 000 000 | E114: 22084 | F114: 16563 | G114: =F114/E114*100 -> 75
A115: Межбюджетные трансферты | B115: 200 | C115: 000 0106 0000000 500 000 | E115: 22084 | F115: 16563 | G115: =F115/E115*100 -> 75
A116: Иные межбюджетные трансферты | B116: 200 | C116: 000 0106 0000000 540 000 | E116: 22084 | F116: 16563 | G116: 75
A117: Расходы | B117: 200 | C117: 000 0106 0000000 540 200 | E117: 22084 | F117: 16563 | G117: 75
A118: Резервные фонды | B118: 200 | C118: 000 0111 0000000 000 000 | E118: 30000 | F118: - | G118: -
A119: Иные бюджетные ассигнования | B119: 200 | C119: 000 0111 0000000 800 000 | E119: 30000 | F119: - | G119: -
A120: Резервные средства | B120: 200 | C120: 000 0111 0000000 870 000 | E120: 30000 | F120: - | G120: -
A121: Расходы | B121: 200 | C121: 000 0111 0000000 870 200 | E121: 30000 | F121: - | G121: -
A122: Другие общегосударственные вопросы | B122: 200 | C122: 000 0113 0000000 000 000 | E122: 550718.26 | F122: 344831.82 | G122: =F122/E122*100 -> 62.61492401
A123: Закупка товаров, работ и услуг для государственных (муниципальных) нужд | B123: 200 | C123: 000 0113 0000000 200 000 | E123: 512640.19 | F123: 322581.57 | G123: =F123/E123*100 -> 62.92553262
A124: Иные закупки товаров, работ и услуг для обеспечения государственных (муниципальных) нужд | B124: 200 | C124: 000 0113 0000000 240 000 | E124: 512640.19 | F124: 322581.57 | G124: 62.92553262
A125: Прочая закупка товаров, работ и услуг для обеспечения государственных (муниципальных) нужд | B125: 200 | C125: 000 0113 0000000 244 000 | E125: 512640.19 | F125: 322581.57 | G125: 62.92553262
A126: Расходы | B126: 200 | C126: 000 0113 0000000 244 200 | E126: 512640.19 | F126: 322581.57 | G126: 62.92553262
A127: Межбюджетные трансферты | B127: 200 | C127: 000 0113 0000000 500 000 | E127: 29667 | F127: 22250.25 | G127: 75
A128: Иные межбюджетные трансферты | B128: 200 | C128: 000 0113 0000000 540 000 | E128: 29667 | F128: 22250.25 | G128: 75
A129: Расходы | B129: 200 | C129: 000 0113 0000000 540 200 | E129: 29667 | F129: 22250.25 | G129: 75
A130: Иные бюджетные ассигнования | B130: 200 | C130: 000 0113 0000000 800 000 | E130: 8411.07 | F130: - | G130: -
A131: Уплата налогов, сборов и иных платежей | B131: 200 | C131: 000 0113 0000000 850 000 | E131: 8411.07 | F131: - | G131: -
A132: Уплата прочих налогов, сборов | B132: 200 | C132: 000 0113 0000000 852 000 | E132: 8411.07 | F132: - | G132: -
A133: Расходы | B133: 200 | C133: 000 0113 0000000 852 200 | E133: 8411.07 | F133: - | G133: -
A134: НАЦИОНАЛЬНАЯ ОБОРОНА | B134: 200 | C134: 000 0200 0000000 000 000 | E134: 91230 | F134: 61325.17 | G134: =F134/E134*100 -> 67.22039899
A135: Расходы на выплаты персоналу в целях обеспечения выполнения функций государственными (муниципальными) органами, казенными учреждениями, органами управления государственными внебюджетными фондами | B135: 200 | C135: 000 0200 0000000 100 000 | E135: 88353.72 | F135: 58740.97 | G135: =F135/E135*100 -> 66.48386735
A136: Расходы на выплаты персоналу государственных (муниципальных) органов | B136: 200 | C136: 000 0200 0000000 120 000 | E136: 88353.72 | F136: 58740.97 | G136: 66.48386735
A137: Фонд оплаты труда государственных (муниципальных) органов и взносы по обязательному социальному страхованию | B137: 200 | C137: 000 0200 0000000 121 000 | E137: 88353.72 | F137: 58740.97 | G137: 66.48386735
A138: Расходы | B138: 200 | C138: 000 0200 0000000 121 200 | E138: 88353.72 | F138: 58740.97 | G138: 66.48386735
A139: Оплата труда и начисления на выплаты по оплате труда | B139: 200 | C139: 000 0200 0000000 121 210 | E139: 88353.72 | F139: 58740.97 | G139: 66.48386735
A140: Заработная плата | B140: 200 | C140: 000 0200 0000000 121 211 | E140: 67860 | F140: 45115.92 | G140: 66.48381963
A141: Начисления на выплаты по оплате труда | B141: 200 | C141: 000 0200 0000000 121 213 | E141: 20493.72 | F141: 13625.05 | G141: 66.48402535
A142: Закупка товаров, работ и услуг для государственных (муниципальных) нужд | B142: 200 | C142: 000 0200 0000000 200 000 | E142: 2876.28 | F142: 2584.2 | G142: 89.84521674
A143: Иные закупки товаров, работ и услуг для обеспечения государственных (муниципальных) нужд | B143: 200 | C143: 000 0200 0000000 240 000 | E143: 2876.28 | F143: 2584.2 | G143: 89.84521674
A144: Закупка товаров, работ, услуг в сфере информационно-коммуникационных технологий | B144: 200 | C144: 000 0200 0000000 242 000 | E144: 2876.28 | F144: 2584.2 | G144: 89.84521674
A145: Расходы | B145: 200 | C145: 000 0200 0000000 242 200 | E145: 2876.28 | F145: 2584.2 | G145: 89.84521674
A146: Оплата работ, услуг | B146: 200 | C146: 000 0200 0000000 242 220 | E146: 2876.28 | F146: 2584.2 | G146: 89.84521674
A147: Услуги связи | B147: 200 | C147: 000 0200 0000000 242 221 | E147: 2876.28 | F147: 2584.2 | G147: 89.84521674
A148: Мобилизационная и вневойсковая подготовка | B148: 200 | C148: 000 0203 0000000 000 000 | E148: 91230 | F148: 61325.17 | G148: =F148/E148*100 -> 67.22039899
A149: Расходы на выплаты персоналу в целях обеспечения выполнения функций государственными (муниципальными) органами, казенными учреждениями, органами управления государственными внебюджетными фондами | B149: 200 | C149: 000 0203 0000000 100 000 | E149: 88353.72 | F149: 58740.97 | G149: =F149/E149*100 -> 66.48386735
A150: Расходы на выплаты персоналу государственных (муниципальных) органов | B150: 200 | C150: 000 0203 0000000 120 000 | E150: 88353.72 | F150: 58740.97 | G150: 66.48386735
A151: Фонд оплаты труда государственных (муниципальных) органов и взносы по обязательному социальному страхованию | B151: 200 | C151: 000 0203 0000000 121 000 | E151: 88353.72 | F151: 58740.97 | G151: 66.48386735
A152: Расходы | B152: 200 | C152: 000 0203 0000000 121 200 | E152: 88353.72 | F152: 58740.97 | G152: 66.48386735
A153: Закупка товаров, работ и услуг для государственных (муниципальных) нужд | B153: 200 | C153: 000 0203 0000000 200 000 | E153: 2876.28 | F153: 2584.2 | G153: 89.84521674
A154: Иные закупки товаров, работ и услуг для обеспечения государственных (муниципальных) нужд | B154: 200 | C154: 000 0203 0000000 240 000 | E154: 2876.28 | F154: 2584.2 | G154: 89.84521674
A155: Закупка товаров, работ, услуг в сфере информационно-коммуникационных технологий | B155: 200 | C155: 000 0203 0000000 242 000 | E155: 2876.28 | F155: 2584.2 | G155: 89.84521674
A156: Расходы | B156: 200 | C156: 000 0203 0000000 242 200 | E156: 2876.28 | F156: 2584.2 | G156: 89.84521674
A157: НАЦИОНАЛЬНАЯ БЕЗОПАСНОСТЬ И ПРАВООХРАНИТЕЛЬНАЯ ДЕЯТЕЛЬНОСТЬ | B157: 200 | C157: 000 0300 0000000 000 000 | E157: 422563.41 | F157: 230842.37 | G157: =F157/E157*100 -> 54.62904845
A158: Закупка товаров, работ и услуг для государственных (муниципальных) нужд | B158: 200 | C158: 000 0300 0000000 200 000 | E158: 410447.41 | F158: 223785.37 | G158: =F158/E158*100 -> 54.52230043
A159: Иные закупки товаров, работ и услуг для обеспечения государственных (муниципальных) нужд | B159: 200 | C159: 000 0300 0000000 240 000 | E159: 410447.41 | F159: 223785.37 | G159: 54.52230043
A160: Закупка товаров, работ, услуг в сфере информационно-коммуникационных технологий | B160: 200 | C160: 000 0300 0000000 242 000 | E160: 1000 | F160: - | G160: -
A161: Расходы | B161: 200 | C161: 000 0300 0000000 242 200 | E161: 1000 | F161: - | G161: -
A162: Оплата работ, услуг | B162: 200 | C162: 000 0300 0000000 242 220 | E162: 1000 | F162: - | G162: -
A163: Услуги связи | B163: 200 | C163: 000 0300 0000000 242 221 | E163: 1000 | F163: - | G163: -
A164: Прочая закупка товаров, работ и услуг для обеспечения государственных (муниципальных) нужд | B164: 200 | C164: 000 0300 0000000 244 000 | E164: 409447.41 | F164: 223785.37 | G164: =F164/E164*100 -> 54.65546113
A165: Расходы | B165: 200 | C165: 000 0300 0000000 244 200 | E165: 303430.9 | F165: 188292.37 | G165: 62.05444798
A166: Оплата работ, услуг | B166: 200 | C166: 000 0300 0000000 244 220 | E166: 253430.9 | F166: 168292.37 | G166: 66.40562378
A167: Коммунальные услуги | B167: 200 | C167: 000 0300 0000000 244 223 | E167: 77219.33 | F167: 43280.8 | G167: 56.04917836
A168: Работы, услуги по содержанию имущества | B168: 200 | C168: 000 0300 0000000 244 225 | E168: 2200 | F168: - | G168: -
A169: Прочие работы, услуги | B169: 200 | C169: 000 0300 0000000 244 226 | E169: 174011.57 | F169: 125011.57 | G169: =F169/E169*100 -> 71.84095287
A170: Прочие расходы | B170: 200 | C170: 000 0300 0000000 244 290 | E170: 50000 | F170: 20000 | G170: 40
A171: Поступление нефинансовых активов | B171: 200 | C171: 000 0300 0000000 244 300 | E171: 106016.51 | F171: 35493 | G171: 33.47874779
A172: Увеличение стоимости основных средств | B172: 200 | C172: 000 0300 0000000 244 310 | E172: 60000 | F172: 10000 | G172: 16.66666667
A173: Увеличение стоимости материальных запасов | B173: 200 | C173: 000 0300 0000000 244 340 | E173: 46016.51 | F173: 25493 | G173: 55.39968155
A174: Межбюджетные трансферты | B174: 200 | C174: 000 0300 0000000 500 000 | E174: 12116 | F174: 7057 | G174: 58.24529548
A175: Иные межбюджетные трансферты | B175: 200 | C175: 000 0300 0000000 540 000 | E175: 12116 | F175: 7057 | G175: 58.24529548
A176: Расходы | B176: 200 | C176: 000 0300 0000000 540 200 | E176: 12116 | F176: 7057 | G176: 58.24529548
A177: Безвозмездные перечисления бюджетам | B177: 200 | C177: 000 0300 0000000 540 250 | E177: 12116 | F177: 7057 | G177: 58.24529548
A178: Перечисления другим бюджетам бюджетной системы Российской Федерации | B178: 200 | C178: 000 0300 0000000 540 251 | E178: 12116 | F178: 7057 | G178: 58.24529548
A179: Защита населения и территории от чрезвычайных ситуаций природного и техногенного характера, гражданская оборона | B179: 200 | C179: 000 0309 0000000 000 000 | E179: 32116 | F179: 26057 | G179: =F179/E179*100 -> 81.1340142
A180: Закупка товаров, работ и услуг для государственных (муниципальных) нужд | B180: 200 | C180: 000 0309 0000000 200 000 | E180: 20000 | F180: 19000 | G180: =F180/E180*100 -> 95
A181: Иные закупки товаров, работ и услуг для обеспечения государственных (муниципальных) нужд | B181: 200 | C181: 000 0309 0000000 240 000 | E181: 20000 | F181: 19000 | G181: 95
A182: Закупка товаров, работ, услуг в сфере информационно-коммуникационных технологий | B182: 200 | C182: 000 0309 0000000 242 000 | E182: 1000 | F182: - | G182: -
A183: Расходы | B183: 200 | C183: 000 0309 0000000 242 200 | E183: 1000 | F183: - | G183: -
A184: Прочая закупка товаров, работ и услуг для обеспечения государственных (муниципальных) нужд | B184: 200 | C184: 000 0309 0000000 244 000 | E184: 19000 | F184: 19000 | G184: =F184/E184*100 -> 100
A185: Расходы | B185: 200 | C185: 000 0309 0000000 244 200 | E185: 2000 | F185: 2000 | G185: 100
A186: Поступление нефинансовых активов | B186: 200 | C186: 000 0309 0000000 244 300 | E186: 17000 | F186: 17000 | G186: 100
A187: Межбюджетные трансферты | B187: 200 | C187: 000 0309 0000000 500 000 | E187: 12116 | F187: 7057 | G187: 58.24529548
A188: Иные межбюджетные трансферты | B188: 200 | C188: 000 0309 0000000 540 000 | E188: 12116 | F188: 7057 | G188: 58.24529548
A189: Расходы | B189: 200 | C189: 000 0309 0000000 540 200 | E189: 12116 | F189: 7057 | G189: 58.24529548
A190: Обеспечение пожарной безопасности | B190: 200 | C190: 000 0310 0000000 000 000 | E190: 382447.41 | F190: 204785.37 | G190: =F190/E190*100 -> 53.54602088
A191: Закупка товаров, работ и услуг для государственных (муниципальных) нужд | B191: 200 | C191: 000 0310 0000000 200 000 | E191: 382447.41 | F191: 204785.37 | G191: =F191/E191*100 -> 53.54602088
A192: Иные закупки товаров, работ и услуг для обеспечения государственных (муниципальных) нужд | B192: 200 | C192: 000 0310 0000000 240 000 | E192: 382447.41 | F192: 204785.37 | G192: 53.54602088
A193: Прочая закупка товаров, работ и услуг для обеспечения государственных (муниципальных) нужд | B193: 200 | C193: 000 0310 0000000 244 000 | E193: 382447.41 | F193: 204785.37 | G193: 53.54602088
A194: Расходы | B194: 200 | C194: 000 0310 0000000 244 200 | E194: 293430.9 | F194: 186292.37 | G194: 63.48764564
A195: Поступление нефинансовых активов | B195: 200 | C195: 000 0310 0000000 244 300 | E195: 89016.51 | F195: 18493 | G195: 20.77479784
A196: Другие вопросы в области национальной безопасности и правоохранительной деятельности | B196: 200 | C196: 000 0314 0000000 000 000 | E196: 8000 | F196: - | G196: -
A197: Закупка товаров, работ и услуг для государственных (муниципальных) нужд | B197: 200 | C197: 000 0314 0000000 200 000 | E197: 8000 | F197: - | G197: -
A198: Иные закупки товаров, работ и услуг для обеспечения государственных (муниципальных) нужд | B198: 200 | C198: 000 0314 0000000 240 000 | E198: 8000 | F198: - | G198: -
A199: Прочая закупка товаров, работ и услуг для обеспечения государственных (муниципальных) нужд | B199: 200 | C199: 000 0314 0000000 244 000 | E199: 8000 | F199: - | G199: -
A200: Расходы | B200: 200 | C200: 000 0314 0000000 244 200 | E200: 8000 | F200: - | G200: -
A201: НАЦИОНАЛЬНАЯ ЭКОНОМИКА | B201: 200 | C201: 000 0400 0000000 000 000 | E201: 6619545.31 | F201: 5546504.1 | G201: =F201/E201*100 -> 83.78980489
A202: Закупка товаров, работ и услуг для государственных (муниципальных) нужд | B202: 200 | C202: 000 0400 0000000 200 000 | E202: 6614545.31 | F202: 5541504.1 | G202: =F202/E202*100 -> 83.77755145
A203: Иные закупки товаров, работ и услуг для обеспечения государственных (муниципальных) нужд | B203: 200 | C203: 000 0400 0000000 240 000 | E203: 6614545.31 | F203: 5541504.1 | G203: 83.77755145
A204: Прочая закупка товаров, работ и услуг для обеспечения государственных (муниципальных) нужд | B204: 200 | C204: 000 0400 0000000 244 000 | E204: 6614545.31 | F204: 5541504.1 | G204: 83.77755145
A205: Расходы | B205: 200 | C205: 000 0400 0000000 244 200 | E205: 6020545.31 | F205: 4974234.1 | G205: 82.62098936
A206: Оплата работ, услуг | B206: 200 | C206: 000 0400 0000000 244 220 | E206: 6020545.31 | F206: 4974234.1 | G206: 82.62098936
A207: Работы, услуги по содержанию имущества | B207: 200 | C207: 000 0400 0000000 244 225 | E207: 5219759.02 | F207: 4720836.91 | G207: 90.44166391
... 203 more rows

Sheet Источники
A1: Приложение №3 к постановлению администрации
A2: Суховского сельского поселения от 19.10.2015г.№191
A3: 3. Источники финансирования дефицита бюджетов на 01.10.2015г.
A5: Наименование показателя | B5: Код строки | C5: Код источника финансирования по бюджетной классификации | E5: План | F5: Факт
E6: Бюджет МО Сельское поселение | F6: Бюджет МО Сельское поселение
A12: 1 | B12: 2 | C12: 3 | E12: 4 | F12: 5
A13: Источники финансирования дефицита бюджетов - всего | B13: 500 | C13: x | E13: 1225184.28 | F13: -676967.14
A14: в том числе:
A15: Источники внутреннего финансирования бюджета | B15: 520 | C15: x | E15: 937400 | F15: -
A16: из них:
A17: Кредиты кредитных организаций в валюте Российской Федерации | B17: 520 | C17: 000 01020000000000 000 | E17: 937400 | F17: -
A18: Получение кредитов от кредитных организаций в валюте Российской Федерации | B18: 520 | C18: 000 01020000000000 700 | E18: 1598800 | F18: -
A19: Погашение кредитов, предоставленных кредитными организациями в валюте Российской Федерации | B19: 520 | C19: 000 01020000000000 800 | E19: -661400 | F19: -
A20: Получение кредитов от кредитных организаций бюджетами сельских поселений в валюте Российской Федерации | B20: 520 | C20: 000 01020000100000 710 | E20: 1598800 | F20: -
A21: Погашение бюджетами сельских поселений кредитов от кредитных организаций в валюте Российской Федерации | B21: 520 | C21: 000 01020000100000 810 | E21: -661400 | F21: -
A22: Источники внешнего финансирования бюджета | B22: 620 | C22: x | E22: - | F22: -
A23: Изменение остатков средств | B23: 700 | C23: ***01000000000000000 | E23: 287784.28 | F23: -676967.14
A24: Изменение остатков средств на счетах по учету средств бюджета | B24: 700 | C24: ***01050000000000000 | E24: 287784.28 | F24: -676967.14
A25: Изменение иных финансовых активов за счет средств, размещенных в депозиты в валюте Российской Федерации и иностранной валюте в кредитных организациях | B25: 700 | C25: ***01060000000000000 | E25: - | F25: -
A26: Увеличение остатков средств, всего | B26: 710
A27: Увеличение остатков средств | B27: 710 | C27: 00001050000000000500 | E27: -26385133.54 | F27: -15867908.32
A28: Изменение остатков средств на счетах по учету средств бюджетов | B28: 710 | C28: 000 01050000000000 000 | E28: -26385133.54 | F28: -15867908.32
A29: Увеличение остатков средств бюджетов | B29: 710 | C29: 000 01050000000000 500 | E29: -26385133.54 | F29: -15867908.32
A30: Увеличение прочих остатков денежных средств бюджетов сельских поселений | B30: 710 | C30: 000 01050201100000 510 | E30: -26385133.54 | F30: -15867908.32
A31: Увеличение остатков средств | B31: 710 | C31: 00001060000000000500 | E31: - | F31: -
A32: Уменьшение остатков средств, всего | B32: 720
A33: Уменьшение остатков средств | B33: 720 | C33: 00001050000000000600 | E33: 26672917.82 | F33: 15190941.18
A34: Изменение остатков средств на счетах по учету средств бюджетов | B34: 720 | C34: 000 01050000000000 000 | E34: 26672917.82 | F34: 15190941.18
A35: Уменьшение остатков средств бюджетов | B35: 720 | C35: 000 01050000000000 600 | E35: 26672917.82 | F35: 15190941.18
A36: Уменьшение прочих остатков денежных средств бюджетов сельских поселений | B36: 720 | C36: 000 01050201100000 610 | E36: 26672917.82 | F36: 15190941.18
A37: Уменьшение остатков средств | B37: 720 | C37: 00001060000000000600 | E37: - | F37: -
A39: "05" октября 2015 г.

Sheet КонсТабл
F1: Приложение №4 к постановлению администрации
F3: Суховского сельского поселения от 19.10.2015г.№191
D4: 4. Таблица консолидируемых расчетов
B6: Наименование показателя | C6: Код стро-ки | D6: Поступления | J6: ИТОГО
D7: бюджет субъекта РФ | E7: бюджеты внутригородских муниципальных образований городов федерального значения | F7: бюджеты городских округов | G7: бюджеты муниципальных районов | H7: Бюджет МО Суховское СП | I7: бюджет территориального государственного внебюджетного фонда
B8: 1 | C8: 2 | D8: 3 | E8: 4 | F8: 5 | G8: 6 | H8: 7 | I8: 8 | J8: 9
B9: Всего выбытий | C9: 900 | D9: =IF(AND(D10="-",D21="-",D32="-",D47="-",D58="-",D69="-"),"-",IF(D10="-","0",D10)+IF(D21="-","0",D21)+IF(D32="-","0",D32)+IF(D47="-","0",D47)+IF(D58="-","0",D58)+IF(D69="-","0",D69)) -> - | E9: - | F9: - | G9: - | H9: 9855726.22 | I9: - | J9: =IF(AND(D9="-",E9="-",F9="-",G9="-",H9="-",I9="-"),"-",IF(D9="-","0",D9)+IF(E9="-","0",E9)+IF(F9="-","0",F9)+IF(G9="-","0",G9)+IF(H9="-","0",H9)+IF(I9="-","0",I9)) -> 9855726.22
B10: Бюджет субъекта Российской Федерации | C10: 910 | D10: =IF(AND(D12="-",D13="-",D14="-",D15="-",D16="-",D17="-",D18="-",D19="-",D20="-"),"-",IF(D12="-","0",D12)+IF(D13="-","0",D13)+IF(D14="-","0",D14)+IF(D15="-","0",D15)+IF(D16="-","0",D16)+IF(D17="-","0",D17)+IF(D18="-","0",D18)+IF(D19="-","0",D19)+IF(D20="-","0",D20)) -> - | E10: - | F10: - | G10: - | H10: - | I10: - | J10: =IF(AND(D10="-",E10="-",F10="-",G10="-",H10="-",I10="-"),"-",IF(D10="-","0",D10)+IF(E10="-","0",E10)+IF(F10="-","0",F10)+IF(G10="-","0",G10)+IF(H10="-","0",H10)+IF(I10="-","0",I10)) -> -
B11: в том числе по видам выбытий:
B12: Субсидии | C12: 911 | D12: - | E12: - | F12: - | G12: - | H12: - | I12: - | J12: =IF(AND(D12="-",E12="-",F12="-",G12="-",H12="-",I12="-"),"-",IF(D12="-","0",D12)+IF(E12="-","0",E12)+IF(F12="-","0",F12)+IF(G12="-","0",G12)+IF(H12="-","0",H12)+IF(I12="-","0",I12)) -> -
B13: Субвенции | C13: 912 | D13: - | E13: - | F13: - | G13: - | H13: - | I13: - | J13: -
B14: Дотации | C14: 913 | D14: - | E14: - | F14: - | G14: - | H14: - | I14: - | J14: -
B15: Иные межбюджетные трансферты | C15: 914 | D15: - | E15: - | F15: - | G15: - | H15: - | I15: - | J15: -
B16: Трансферты бюджету территориального фонда | C16: 915 | D16: - | E16: - | F16: - | G16: - | H16: - | I16: - | J16: -
B17: Возврат неиспользованных остатков субсидий, субвенций и иных межбюджетных трансфертов прошлых лет | C17: 916 | D17: - | E17: - | F17: - | G17: - | H17: - | I17: - | J17: -
B18: Выдача бюджетных кредитов другим бюджетам бюджетной системы Российской Федерации | C18: 917 | D18: - | E18: - | F18: - | G18: - | H18: - | I18: - | J18: -
B19: Уменьшение внутренних заимствований | C19: 918 | D19: - | E19: - | F19: - | G19: - | H19: - | I19: - | J19: -
B20: Обслуживание внутренних долговых обязательств (в части процентов, пеней и штрафных санкций по полученным бюджетным кредитам) | C20: 919 | D20: - | E20: - | F20: - | G20: - | H20: - | I20: - | J20: -
B21: Бюджеты внутригородских муниципальных образований городов федерального значения | C21: 920 | D21: =IF(AND(D23="-",D24="-",D25="-",D26="-",D27="-",D28="-",D29="-",D30="-",D31="-"),"-",IF(D23="-","0",D23)+IF(D24="-","0",D24)+IF(D25="-","0",D25)+IF(D26="-","0",D26)+IF(D27="-","0",D27)+IF(D28="-","0",D28)+IF(D29="-","0",D29)+IF(D30="-","0",D30)+IF(D31="-","0",D31)) -> - | E21: - | F21: - | G21: - | H21: - | I21: - | J21: -
B22: в том числе по видам выбытий:
B23: Субсидии | C23: 921 | D23: - | E23: - | F23: - | G23: - | H23: - | I23: - | J23: =IF(AND(D23="-",E23="-",F23="-",G23="-",H23="-",I23="-"),"-",IF(D23="-","0",D23)+IF(E23="-","0",E23)+IF(F23="-","0",F23)+IF(G23="-","0",G23)+IF(H23="-","0",H23)+IF(I23="-","0",I23)) -> -
B24: Субвенции | C24: 922 | D24: - | E24: - | F24: - | G24: - | H24: - | I24: - | J24: =IF(AND(D24="-",E24="-",F24="-",G24="-",H24="-",I24="-"),"-",IF(D24="-","0",D24)+IF(E24="-","0",E24)+IF(F24="-","0",F24)+IF(G24="-","0",G24)+IF(H24="-","0",H24)+IF(I24="-","0",I24)) -> -
B25: Дотации | C25: 923 | D25: - | E25: - | F25: - | G25: - | H25: - | I25: - | J25: -
B26: Иные межбюджетные трансферты | C26: 924 | D26: - | E26: - | F26: - | G26: - | H26: - | I26: - | J26: -
B27: Трансферты бюджету территориального фонда | C27: 925 | D27: - | E27: - | F27: - | G27: - | H27: - | I27: - | J27: -
B28: Возврат неиспользованных остатков субсидий, субвенций и иных межбюджетных трансфертов прошлых лет | C28: 926 | D28: - | E28: - | F28: - | G28: - | H28: - | I28: - | J28: -
B29: Выдача бюджетных кредитов другим бюджетам бюджетной системы Российской Федерации | C29: 927 | D29: - | E29: - | F29: - | G29: - | H29: - | I29: - | J29: -
B30: Уменьшение внутренних заимствований | C30: 928 | D30: - | E30: - | F30: - | G30: - | H30: - | I30: - | J30: -
B31: Обслуживание внутренних долговых обязательств (в части процентов, пеней и штрафных санкций по полученным бюджетным кредитам) | C31: 929 | D31: - | E31: - | F31: - | G31: - | H31: - | I31: - | J31: -
B32: Бюджеты городских округов | C32: 930 | D32: =IF(AND(D34="-",D35="-",D36="-",D37="-",D38="-",D39="-",D40="-",D41="-",D42="-"),"-",IF(D34="-","0",D34)+IF(D35="-","0",D35)+IF(D36="-","0",D36)+IF(D37="-","0",D37)+IF(D38="-","0",D38)+IF(D39="-","0",D39)+IF(D40="-","0",D40)+IF(D41="-","0",D41)+IF(D42="-","0",D42)) -> - | E32: - | F32: - | G32: - | H32: - | I32: - | J32: =IF(AND(D32="-",E32="-",F32="-",G32="-",H32="-",I32="-"),"-",IF(D32="-","0",D32)+IF(E32="-","0",E32)+IF(F32="-","0",F32)+IF(G32="-","0",G32)+IF(H32="-","0",H32)+IF(I32="-","0",I32)) -> -
B33: в том числе по видам выбытий:
B34: Субсидии | C34: 931 | D34: - | E34: - | F34: - | G34: - | H34: - | I34: - | J34: =IF(AND(D34="-",E34="-",F34="-",G34="-",H34="-",I34="-"),"-",IF(D34="-","0",D34)+IF(E34="-","0",E34)+IF(F34="-","0",F34)+IF(G34="-","0",G34)+IF(H34="-","0",H34)+IF(I34="-","0",I34)) -> -
B35: Субвенции | C35: 932 | D35: - | E35: - | F35: - | G35: - | H35: - | I35: - | J35: -
B36: Дотации | C36: 933 | D36: - | E36: - | F36: - | G36: - | H36: - | I36: - | J36: -
B37: Иные межбюджетные трансферты | C37: 934 | D37: - | E37: - | F37: - | G37: - | H37: - | I37: - | J37: -
B38: Трансферты бюджету территориального фонда | C38: 935 | D38: - | E38: - | F38: - | G38: - | H38: - | I38: - | J38: -
B39: Возврат неиспользованных остатков субсидий, субвенций и иных межбюджетных трансфертов прошлых лет | C39: 936 | D39: - | E39: - | F39: - | G39: - | H39: - | I39: - | J39: -
B40: Выдача бюджетных кредитов другим бюджетам бюджетной системы Российской Федерации | C40: 937 | D40: - | E40: - | F40: - | G40: - | H40: - | I40: - | J40: -
B41: Уменьшение внутренних заимствований | C41: 938 | D41: - | E41: - | F41: - | G41: - | H41: - | I41: - | J41: -
B42: Обслуживание внутренних долговых обязательств (в части процентов, пеней и штрафных санкций по полученным бюджетным кредитам) | C42: 939 | D42: - | E42: - | F42: - | G42: - | H42: - | I42: - | J42: -
J43: Форма 0503317 с.5
A44: Выбытия | B44: Наименование показателя | C44: Код строки | D44: Поступления | J44: ИТОГО
D45: бюджет субъекта Российской Федерации | E45: бюджеты внутригородских муниципальных образований городов федерального значения | F45: бюджеты городских округов | G45: бюджеты муниципальных районов | H45: бюджеты городских и сельских поселений | I45: бюджет территориального государственного внебюджетного фонда
B46: 1 | C46: 2 | D46: 3 | E46: 4 | F46: 5 | G46: 6 | H46: 7 | I46: 8 | J46: 9
B47: Бюджеты муниципальных районов | C47: 940 | D47: =IF(AND(D49="-",D50="-",D51="-",D52="-",D53="-",D54="-",D55="-",D56="-",D57="-"),"-",IF(D49="-","0",D49)+IF(D50="-","0",D50)+IF(D51="-","0",D51)+IF(D52="-","0",D52)+IF(D53="-","0",D53)+IF(D54="-","0",D54)+IF(D55="-","0",D55)+IF(D56="-","0",D56)+IF(D57="-","0",D57)) -> - | E47: - | F47: - | G47: - | H47: - | I47: - | J47: =IF(AND(D47="-",E47="-",F47="-",G47="-",H47="-",I47="-"),"-",IF(D47="-","0",D47)+IF(E47="-","0",E47)+IF(F47="-","0",F47)+IF(G47="-","0",G47)+IF(H47="-","0",H47)+IF(I47="-","0",I47)) -> -
B48: в том числе по видам выбытий:
B49: Субсидии | C49: 941 | D49: - | E49: - | F49: - | G49: - | H49: - | I49: - | J49: =IF(AND(D49="-",E49="-",F49="-",G49="-",H49="-",I49="-"),"-",IF(D49="-","0",D49)+IF(E49="-","0",E49)+IF(F49="-","0",F49)+IF(G49="-","0",G49)+IF(H49="-","0",H49)+IF(I49="-","0",I49)) -> -
B50: Субвенции | C50: 942 | D50: - | E50: - | F50: - | G50: - | H50: - | I50: - | J50: -
B51: Дотации | C51: 943 | D51: - | E51: - | F51: - | G51: - | H51: - | I51: - | J51: -
B52: Иные межбюджетные трансферты | C52: 944 | D52: - | E52: - | F52: - | G52: - | H52: - | I52: - | J52: -
B53: Трансферты бюджету территориального фонда | C53: 945 | D53: - | E53: - | F53: - | G53: - | H53: - | I53: - | J53: -
B54: Возврат неиспользованных остатков субсидий, субвенций и иных межбюджетных трансфертов прошлых лет | C54: 946 | D54: - | E54: - | F54: - | G54: - | H54: - | I54: - | J54: -
B55: Выдача бюджетных кредитов другим бюджетам бюджетной системы Российской Федерации | C55: 947 | D55: - | E55: - | F55: - | G55: - | H55: - | I55: - | J55: -
B56: Уменьшение внутренних заимствований | C56: 948 | D56: - | E56: - | F56: - | G56: - | H56: - | I56: - | J56: -
B57: Обслуживание внутренних долговых обязательств (в части процентов, пеней и штрафных санкций по полученным бюджетным кредитам) | C57: 949 | D57: - | E57: - | F57: - | G57: - | H57: - | I57: - | J57: -
B58: Бюджеты городских и сельских поселений | C58: 950 | D58: =IF(AND(D60="-",D61="-",D62="-",D63="-",D64="-",D65="-",D66="-",D67="-",D68="-"),"-",IF(D60="-","0",D60)+IF(D61="-","0",D61)+IF(D62="-","0",D62)+IF(D63="-","0",D63)+IF(D64="-","0",D64)+IF(D65="-","0",D65)+IF(D66="-","0",D66)+IF(D67="-","0",D67)+IF(D68="-","0",D68)) -> - | E58: - | F58: - | G58: - | H58: 9855726.22 | I58: - | J58: 9855726.22
B59: в том числе по видам выбытий:
B60: Субсидии | C60: 951 | D60: - | E60: - | F60: - | G60: - | H60: 3659995 | I60: - | J60: =IF(AND(D60="-",E60="-",F60="-",G60="-",H60="-",I60="-"),"-",IF(D60="-","0",D60)+IF(E60="-","0",E60)+IF(F60="-","0",F60)+IF(G60="-","0",G60)+IF(H60="-","0",H60)+IF(I60="-","0",I60)) -> 3659995
B61: Субвенции | C61: 952 | D61: - | E61: - | F61: - | G61: - | H61: 92230 | I61: - | J61: =IF(AND(D61="-",E61="-",F61="-",G61="-",H61="-",I61="-"),"-",IF(D61="-","0",D61)+IF(E61="-","0",E61)+IF(F61="-","0",F61)+IF(G61="-","0",G61)+IF(H61="-","0",H61)+IF(I61="-","0",I61)) -> 92230
B62: Дотации | C62: 953 | D62: - | E62: - | F62: - | G62: - | H62: 1744800 | I62: - | J62: 1744800
B63: Иные межбюджетные трансферты | C63: 954 | D63: - | E63: - | F63: - | G63: - | H63: 4358701.22 | I63: - | J63: 4358701.22
B64: Трансферты бюджету территориального фонда | C64: 955 | D64: - | E64: - | F64: - | G64: - | H64: - | I64: - | J64: -
B65: Возврат неиспользованных остатков субсидий, субвенций и иных межбюджетных трансфертов прошлых лет | C65: 956 | D65: - | E65: - | F65: - | G65: - | H65: - | I65: - | J65: -
B66: Выдача бюджетных кредитов другим бюджетам бюджетной системы Российской Федерации | C66: 957 | D66: - | E66: - | F66: - | G66: - | H66: - | I66: - | J66: -
B67: Уменьшение внутренних заимствований | C67: 958 | D67: - | E67: - | F67: - | G67: - | H67: - | I67: - | J67: -
B68: Обслуживание внутренних долговых обязательств (в части процентов, пеней и штрафных санкций по полученным бюджетным кредитам) | C68: 959 | D68: - | E68: - | F68: - | G68: - | H68: - | I68: - | J68: -
B69: Бюджет территориального государственного внебюджетного фонда | C69: 960 | D69: =IF(AND(D71="-",D72="-",D73="-",D74="-",D75="-",D76="-",D77="-",D78="-",D79="-"),"-",IF(D71="-","0",D71)+IF(D72="-","0",D72)+IF(D73="-","0",D73)+IF(D74="-","0",D74)+IF(D75="-","0",D75)+IF(D76="-","0",D76)+IF(D77="-","0",D77)+IF(D78="-","0",D78)+IF(D79="-","0",D79)) -> - | E69: - | F69: - | G69: - | H69: - | I69: - | J69: -
B70: в том числе по видам выбытий:
B71: Субсидии | C71: 961 | D71: - | E71: - | F71: - | G71: - | H71: - | I71: - | J71: =IF(AND(D71="-",E71="-",F71="-",G71="-",H71="-",I71="-"),"-",IF(D71="-","0",D71)+IF(E71="-","0",E71)+IF(F71="-","0",F71)+IF(G71="-","0",G71)+IF(H71="-","0",H71)+IF(I71="-","0",I71)) -> -
B72: Субвенции | C72: 962 | D72: - | E72: - | F72: - | G72: - | H72: - | I72: - | J72: =IF(AND(D72="-",E72="-",F72="-",G72="-",H72="-",I72="-"),"-",IF(D72="-","0",D72)+IF(E72="-","0",E72)+IF(F72="-","0",F72)+IF(G72="-","0",G72)+IF(H72="-","0",H72)+IF(I72="-","0",I72)) -> -
B73: Дотации | C73: 963 | D73: - | E73: - | F73: - | G73: - | H73: - | I73: - | J73: -
B74: Иные межбюджетные трансферты | C74: 964 | D74: - | E74: - | F74: - | G74: - | H74: - | I74: - | J74: -
B75: Трансферты бюджету территориального фонда | C75: 965 | D75: - | E75: - | F75: - | G75: - | H75: - | I75: - | J75: -
B76: Возврат неиспользованных остатков субсидий, субвенций и иных межбюджетных трансфертов прошлых лет | C76: 966 | D76: - | E76: - | F76: - | G76: - | H76: - | I76: - | J76: -
B77: Выдача бюджетных кредитов другим бюджетам бюджетной системы Российской Федерации | C77: 967 | D77: - | E77: - | F77: - | G77: - | H77: - | I77: - | J77: -
B78: Уменьшение внутренних заимствований | C78: 968 | D78: - | E78: - | F78: - | G78: - | H78: - | I78: - | J78: -
B79: Обслуживание внутренних долговых обязательств (в части процентов, пеней и штрафных санкций по полученным бюджетным кредитам) | C79: 969 | D79: - | E79: - | F79: - | G79: - | H79: - | I79: - | J79: =IF(AND(D79="-",E79="-",F79="-",G79="-",H79="-",I79="-"),"-",IF(D79="-","0",D79)+IF(E79="-","0",E79)+IF(F79="-","0",F79)+IF(G79="-","0",G79)+IF(H79="-","0",H79)+IF(I79="-","0",I79)) -> -

Sheet ExportParams (hidden)
A1: EXPORT_SRC_KIND | B1: 5
A2: EXPORT_PARAM_SRC_KIND | B2: 3
A3: EXPORT_SRC_CODE | B3: 4500910
